[Event "6th Uppsala Young Champions 2019"]
[Site "Uppsala"]
[Date "2019.10.26"]
[Round "2.12"]
[White "Storme, Isak"]
[Black "Soderstrom, Adrian"]
[Result "1-0"]
[ECO "A15"]
[WhiteElo "2244"]
[BlackElo "1960"]
[Annotator "ChessBase"]
[PlyCount "45"]
[EventDate "2019.10.25"]
[EventType "swiss"]
[EventCountry "SWE"]
[SourceTitle "playchess.com"]
[Source "ChessBase"]
[SourceQuality "1"]
[TimeControl "5400+30"]

1. d4 {[%emt 0:00:00]} Nf6 {[%emt 0:00:07]} 2. Nf3 {[%emt 0:00:00]} g6 {[%emt 0:00:29]} 3. g3 {[%emt 0:00:00]} Bg7 {[%emt 0:00:27]} 4. Bg2 {[%emt 0:00:00]} O-O {[%emt 0:00:05]} 5. O-O {[%emt 0:00:00]} d6 {[%emt 0:00:01]} 6. b3 {[%emt 0:00:13]} b6 {[%emt 0:05:21]} 7. Bb2 {[%emt 0:02:06]} Bb7 {[%emt 0:00:40]} 8. c4 {[%emt 0:05:20]} c5 {[%emt 0:00:35]} 9. d5 {[%emt 0:06:15]} e6 {[%emt 0:00:29]} 10. dxe6 {[%emt 0:04:24]} fxe6 {[%emt 0:00:45]} 11. Nc3 {[%emt 0:03:44]} d5 {[%emt 0:09:44]} 12. Ng5 {[%emt 0:04:41]} Qd7 {[%emt 0:05:16]} 13. Bh3 {[%emt 0:06:45]} Re8 {[%emt 0:00:02]} 14. Nxd5 {[%emt 0:01:13]} Qc6 {[%emt 0:11:11]} 15. Bxf6 {[%emt 0:23:51]} exd5 {[%emt 0:00:12]} 16. Bg2 {[%emt 0:00:19]} Qxf6 {[%emt 0:03:14]} 17. Bxd5+ {[%emt 0:00:12]} Bxd5 {[%emt 0:00:04]} 18. Qxd5+ {[%emt 0:00:08]} Kh8 {[%emt 0:00:03]} 19. Nf7+ {[%emt 0:00:32]} Kg8 {[%emt 0:00:01]} 20. Nd6+ {[%emt 0:00:48]} Qe6 {[%emt 0:00:36]} 21. Nxe8 {[%emt 0:00:09]} Qxd5 {[%emt 0:00:13]} 22. cxd5 {[%emt 0:00:06]} Bxa1 {[%emt 0:01:15]} 23. Nc7 {[%emt 0:00:07]} 1-0

[Event "6th Uppsala Young Champions 2019"]
[Site "Uppsala"]
[Date "2019.10.26"]
[Round "2.13"]
[White "Trost, Edvin"]
[Black "Sorensen, Hampus"]
[Result "1/2-1/2"]
[ECO "A06"]
[WhiteElo "1982"]
[BlackElo "2330"]
[Annotator "NA"]
[PlyCount "95"]
[EventDate "2019.10.25"]
[EventType "swiss"]
[EventCountry "SWE"]
[SourceTitle "playchess.com"]
[Source "ChessBase"]
[SourceQuality "1"]
[TimeControl "5400+30"]

1. Nf3 {[%emt 0:00:09]} d5 {[%emt 0:00:10]} 2. e3 {[%emt 0:00:11]} Nf6 {[%emt 0:05:01]} 3. b3 {[%emt 0:00:13]} g6 {[%emt 0:02:43]} 4. Bb2 {[%emt 0:01:26]} Bg7 {[%emt 0:00:28]} 5. c4 {[%emt 0:00:15]} e6 {[%emt 0:04:23]} 6. Nc3 {[%emt 0:03:11] A06: Réti Opening:1 Nf3 d5} (6. d4 O-O 7. Nbd2 dxc4 8. Bxc4 c5 9. O-O cxd4 10. Nxd4 Bd7 11. Rc1 Nc6 12. N2f3 Nxd4 13. Bxd4 {½-½ (36) Vachier Lagrave,M (2779)-Nakamura,H (2777) chess.com INT 2018}) 6... O-O {[%emt 0:01:02]} 7. d4 {[%emt 0:02:17]} b6 {[%emt 0:06:31]} 8. Bd3 {[%emt 0:01:13]} Bb7 {[%emt 0:00:22]} 9. O-O {[%emt 0:00:30]} Nbd7 {[%emt 0:04:37]} 10. Qe2 {[%emt 0:08:08]} c5 {[%emt 0:01:18]} 11. cxd5 {[%emt 0:03:08]} Nxd5 {[%emt 0:06:54]} 12. Nxd5 {[%emt 0:10:57]} Bxd5 {[%emt 0:01:45]} 13. Rad1 $146 {[%emt 0:01:06]} ({Predecessor:} 13. Rfd1 Qe7 14. e4 Bb7 {0-1 (58) Straeter,T (2348)-Andersson,U (2580) Germany 2005}) 13... Qc7 {[%emt 0:06:29]} 14. Bb5 {[%emt 0:06:12]} Rfd8 {[%emt 0:05:21]} 15. Bxd7 {[%emt 0:02:20]} Rxd7 {[%emt 0:01:01]} 16. dxc5 {[%emt 0:00:43]} bxc5 {[%emt 0:06:32]} 17. Bxg7 {[%emt 0:01:17]} Kxg7 {[%emt 0:00:01]} 18. Qb2+ {[%emt 0:00:27]} f6 {[%emt 0:00:27]} 19. Ng5 {[%emt 0:00:48]} Re8 {[%emt 0:02:55]} 20. Nh3 {[%emt 0:11:46]} e5 {[%emt 0:00:56]} 21. f4 {[%emt 0:01:03]} Bc6 {[%emt 0:05:02]} 22. Qc3 {[%emt 0:06:17]} Ba8 {[%emt 0:08:04]} 23. fxe5 {[%emt 0:07:30]} Rxe5 {[%emt 0:00:12]} 24. Nf4 {[%emt 0:00:06]} Rde7 {[%emt 0:01:41]} 25. Rd3 {[%emt 0:02:39]} Qc6 {[%emt 0:08:57]} 26. Nd5 {[%emt 0:02:21]} Rf5 {[%emt 0:07:48]} (26... R5e6 $14) 27. Rxf5 {[%emt 0:02:48]} gxf5 {[%emt 0:00:01]} 28. Nf4 {[%emt 0:03:19]} Re4 {[%emt 0:02:03] [#]} 29. Qd2 $1 {[%emt 0:03:11]} c4 {[%emt 0:01:51]} 30. Rc3 {[%emt 0:00:54]} Qb6 {[%emt 0:01:23]} 31. bxc4 {[%emt 0:02:29]} Qc5 {[%emt 0:03:49]} 32. Qd7+ {[%emt 0:03:00]} Kh6 {[%emt 0:00:02]} 33. Ne6 {[%emt 0:00:30]} Rxe6 {[%emt 0:00:51]} 34. Qxe6 $18 {[%emt 0:00:07]} Be4 {[%emt 0:00:19]} 35. Qxf6+ {[%emt 0:00:11]} Kh5 {[%emt 0:00:01]} 36. Qf7+ {[%emt 0:01:30]} Kh6 {[%emt 0:00:06]} 37. Qe6+ {[%emt 0:06:23]} Kh5 {[%emt 0:00:41]} 38. g4+ {[%emt 0:05:44]} Kxg4 {[%emt 0:01:28]} 39. Qg8+ {[%emt 0:00:40]} Kh5 {[%emt 0:00:56]} 40. Qxh7+ {[%emt 0:00:05]} Kg5 {[%emt 0:00:20]} 41. Qg7+ {[%emt 0:01:25]} Kh5 {[%emt 0:00:06]} 42. Qf7+ {[%emt 0:01:24]} Kg5 {[%emt 0:00:04]} 43. Qg8+ {[%emt 0:00:49]} Kh5 {[%emt 0:00:08]} 44. Qh8+ {[%emt 0:00:03]} Kg5 {[%emt 0:00:08]} 45. h4+ {[%emt 0:01:13]} Kg4 {[%emt 0:00:21]} 46. Kf2 {[%emt 0:00:30]} Qd6 {[%emt 0:00:21]} 47. Qg7+ {[%emt 0:00:26]} Kh3 {[%emt 0:00:01]} 48. Ke1 {[%emt 0:00:34]} 1/2-1/2

[Event "6th Uppsala Young Champions 2019"]
[Site "Uppsala"]
[Date "2019.10.26"]
[Round "2.14"]
[White "Thorhallsson, Simon"]
[Black "Grahn, Vidar"]
[Result "1-0"]
[ECO "D00"]
[WhiteElo "2190"]
[BlackElo "1926"]
[Annotator "NA"]
[PlyCount "59"]
[EventDate "2019.10.25"]
[EventType "swiss"]
[EventCountry "SWE"]
[SourceTitle "playchess.com"]
[Source "ChessBase"]
[SourceQuality "1"]
[TimeControl "5400+30"]

{[%evp 8,58,2,6,20,1,3,-8,16,6,17,11,20,20,120,116,124,87,131,73,49,41,84,62,69,30,45,57,48,47,61,22,128,116,32767,32767,32767,32767,32767,153,209,222,238,32767,32767,323,341,32767,32767,32767,32767,32767,772]} 1. d4 {[%emt 1:30:30]} d5 {[%emt 1:30:30]} 2. Bf4 {[%emt 0:00:30]} Nf6 {[%emt 0:00:30]} 3. Nc3 {[%emt 0:00:30]} c6 {[%emt 0:00:30]} 4. e3 {[%emt 0:00:30]} Bf5 {[%emt 0:00:30]} (4... Nbd7 5. Bd3 g6 6. h3 Bg7 7. Nf3 O-O 8. O-O b6 9. e4 dxe4 10. Nxe4 Bb7 11. Re1 Nxe4 12. Bxe4 Nf6 13. Bd3 c5 14. dxc5 bxc5 15. Ne5 Qb6 {1-0 (48) Firouzja,A (2682)-Vidit,S (2707) Xingtai 2019}) 5. Bd3 {[%emt 0:00:30]} Bxd3 {[%emt 0:00:30]} 6. Qxd3 {[%emt 0:00:30] D00: 1 d4 d5: Unusual lines} e6 {[%emt 0:00:30]} 7. Nf3 {[%emt 0:00:30]} Bb4 {[%emt 0:00:30]} 8. O-O {[%emt 0:00:30]} O-O {[%emt 0:00:30]} 9. Ne2 {[%emt 0:00:30]} Ne4 $146 {[%emt 0:00:30]} ({Predecessor:} 9... Nbd7 10. Qb3 Qb6 11. c3 Ba5 12. Qxb6 Bxb6 {0-1 (20) Smith,E-Lacunza,M IECG email 2002}) 10. c4 {[%emt 0:00:30]} f5 {[%emt 0:00:30] [#]} (10... g5 $11 {remains equal.}) 11. Qb3 $1 {[%emt 0:00:30]} Qe7 {[%emt 0:00:30]} 12. c5 {[%emt 0:00:30]} Ba5 {[%emt 0:00:30] [#]} 13. Bd6 {[%emt 0:00:30]} (13. Ng3 $142 $1 {[%cal Rg3e4]} Qd7 14. Bd6 Nxd6 15. Ne5 (15. cxd6 Qxd6 16. Qxb7 Nd7 $14)) 13... Nxd6 {[%emt 0:00:30]} 14. cxd6 {[%emt 0:00:30]} Qxd6 {[%emt 0:00:30]} 15. Qxb7 {[%emt 0:00:30]} Nd7 {[%emt 0:00:30]} 16. Nf4 {[%emt 0:00:30]} Rfb8 {[%emt 0:00:30]} 17. Qa6 {[%emt 0:00:30]} Bc7 {[%emt 0:00:30]} 18. Rac1 {[%emt 0:00:30]} Rb6 {[%emt 0:00:30]} 19. Qa4 {[%emt 0:00:30]} Rab8 {[%emt 0:00:30] [#]} (19... Rxb2 $11 20. Rxc6 Nb6 21. Rxd6 Nxa4) 20. Nd3 $1 {[%emt 0:00:30]} ({Of course not} 20. Qxa7 $6 Rxb2 21. g3 R2b7 $14) 20... Rb5 {[%emt 0:00:30]} 21. Qc2 {[%emt 0:00:30]} R5b6 {[%emt 0:00:30]} 22. b4 {[%emt 0:00:30]} g5 {[%emt 0:00:30] [#]} 23. a4 $1 {[%emt 0:00:30]} g4 {[%emt 0:00:30]} (23... Rc8 $16) 24. Nfe5 $1 {[%emt 0:00:30]} Nxe5 {[%emt 0:00:30]} 25. dxe5 {[%emt 0:00:30]} Qe7 {[%emt 0:00:30] [#]} 26. a5 $1 {[%emt 0:00:30]} Rb5 {[%emt 0:00:30]} 27. Qxc6 {[%emt 0:00:30]} Bd8 {[%emt 0:00:30]} 28. Qa6 {[%emt 0:00:30]} Qf7 {[%emt 0:00:30]} 29. Rc8 {[%emt 0:00:30]} Kg7 $18 {[%emt 0:00:30]} (29... Qd7 $142) 30. Rxd8 {[%emt 0:00:30]} 1-0

[Event "6th Uppsala Young Champions 2019"]
[Site "Uppsala"]
[Date "2019.10.26"]
[Round "2.15"]
[White "Rasti, Arvin"]
[Black "Dingertz, Erik"]
[Result "1-0"]
[ECO "E66"]
[WhiteElo "2179"]
[BlackElo "1908"]
[Annotator "NA"]
[PlyCount "69"]
[EventDate "2019.10.25"]
[EventType "swiss"]
[EventCountry "SWE"]
[SourceTitle "playchess.com"]
[Source "ChessBase"]
[SourceQuality "1"]
[TimeControl "5400+30"]

{[%evp 15,69,11,88,72,76,64,102,118,109,120,247,139,119,87,141,112,129,47,91,23,68,82,130,121,252,268,403,208,229,97,381,32767,32767,32767,32767,32767,32767,31,81,54,279,32767,337,32767,32767,320,32767,32767,32767,134,126,137,32767,113,456,510]} 1. Nf3 {[%emt 1:30:30]} Nf6 {[%emt 1:30:30]} 2. g3 {[%emt 0:00:30]} g6 {[%emt 0:00:30]} 3. Bg2 {[%emt 0:00:30]} Bg7 {[%emt 0:00:30]} 4. O-O {[%emt 0:00:30]} O-O {[%emt 0:00:30]} 5. c4 {[%emt 0:00:30]} c5 {[%emt 0:00:30]} 6. Nc3 {[%emt 0:00:30]} Nc6 {[%emt 0:00:30]} 7. d4 {[%emt 0:00:30]} d6 {[%emt 0:00:30]} 8. d5 {[%emt 0:00:30]} Nb8 {[%emt 0:00:30]} (8... Na5 $1 $11 {keeps the balance.}) 9. Qc2 {[%emt 0:00:30] E66: King's Indian: Fianchetto: 6...c5 7 0-0 Nc6 8 d5} Nbd7 {[%emt 0:00:30]} 10. e4 {[%emt 0:00:30]} (10. Bf4 a6 11. e4 b5 12. cxb5 axb5 13. Nxb5 Ba6 14. a4 Rb8 15. Nd2 Bxb5 16. axb5 Qb6 {1-0 (27) Berdnyk,M (2247)-Kopriva,M (2031) Pardubice 2019}) 10... e6 $146 {[%emt 0:00:30]} ({Predecessor:} 10... Ng4 11. Qe2 Nde5 12. Nxe5 Nxe5 13. Bf4 a6 14. Bxe5 Bxe5 15. f4 Bg7 16. e5 Qc7 {½-½ (30) Aydin,A (1271)-Kaya,E (1276) Konya 2019}) 11. dxe6 {[%emt 0:00:30]} fxe6 {[%emt 0:00:30]} 12. Rd1 {[%emt 0:00:30]} Nb6 {[%emt 0:00:30]} (12... Qe7 $16 {is a better defense.}) 13. Nb5 {[%emt 0:00:30]} ({Better is} 13. e5 $18) 13... d5 {[%emt 0:00:30]} 14. cxd5 {[%emt 0:00:30]} exd5 {[%emt 0:00:30]} 15. exd5 {[%emt 0:00:30]} Nfxd5 {[%emt 0:00:30]} 16. Qxc5 {[%emt 0:00:30]} (16. Ng5 $16) 16... Bg4 {[%emt 0:00:30]} 17. Qa3 {[%emt 0:00:30]} (17. Bf4 $5) 17... a6 {[%emt 0:00:30]} 18. Nbd4 {[%emt 0:00:30]} Nc4 {[%emt 0:00:30]} 19. Qb3 {[%emt 0:00:30]} b5 {[%emt 0:00:30]} (19... Na5 $16 {was necessary.} 20. Qc2 Rc8) 20. h3 {[%emt 0:00:30]} Bd7 {[%emt 0:00:30]} (20... Na5 {keeps fighting.} 21. Qa3 Bxf3 22. Nxf3 (22. Bxf3 b4 $18) 22... b4) 21. Bg5 {[%emt 0:00:30]} (21. Ng5 $142 Ndb6 22. Bxa8 Bxd4 23. Rxd4 Qxa8 24. Qd1) 21... Qb6 {[%emt 0:00:30] [#]} 22. Rac1 $2 {[%emt 0:00:30]} (22. Ne5 $1 $18 {[%mdl 512]} Bxe5 (22... Nxe5 23. Bxd5+) 23. Bxd5+ Kh8 24. Nf3) 22... h6 $2 {[%emt 0:00:30]} (22... Kh8 $16) 23. Bd2 {[%emt 0:00:30]} Rac8 {[%emt 0:00:30]} 24. Bc3 {[%emt 0:00:30]} Nxc3 {[%emt 0:00:30]} 25. bxc3 {[%emt 0:00:30]} Kh8 {[%emt 0:00:30]} 26. Qc2 {[%emt 0:00:30]} Rce8 {[%emt 0:00:30]} 27. Re1 {[%emt 0:00:30]} Bc8 $2 {[%emt 0:00:30]} ({Black should try} 27... g5 $14) 28. Nh4 {[%emt 0:00:30]} Rxe1+ {[%emt 0:00:30]} 29. Rxe1 Bxd4 {[%emt 0:00:30]} 30. cxd4 {[%emt 0:01:00]} Bf5 {[%emt 0:00:30]} 31. Be4 {[%emt 0:00:30]} Bxe4 {[%emt 0:00:30]} 32. Qxe4 {[%emt 0:00:30]} (32. Rxe4 $18 {and the rest is easy.} Rf6 33. Re8+ Kg7 34. Qe4 (34. Re7+ Rf7 $18)) 32... Kg7 {[%emt 0:00:30]} 33. Re2 {[%emt 0:00:30]} Qf6 {[%emt 0:00:30]} 34. Ng2 {[%emt 0:00:30]} Rd8 $18 {[%emt 0:00:30]} (34... Qf3 $16 {is more resistant.}) 35. Nf4 {[%emt 0:00:30]} 1-0

[Event "6th Uppsala Young Champions 2019"]
[Site "Uppsala"]
[Date "2019.10.26"]
[Round "2.16"]
[White "Carlsson, Ludvig"]
[Black "Skahlberg Bjerknes-Lima de Far, Warg"]
[Result "1-0"]
[ECO "A38"]
[WhiteElo "2066"]
[BlackElo "1637"]
[Annotator "NA"]
[PlyCount "86"]
[EventDate "2019.10.25"]
[EventType "swiss"]
[EventCountry "SWE"]
[SourceTitle "playchess.com"]
[Source "ChessBase"]
[SourceQuality "1"]
[TimeControl "5400+30"]

{[%evp 8,86,32,12,32,19,30,27,34,4,60,33,51,32,43,28,52,43,58,29,29,25,31,27,36,13,3,0,9,32767,32767,32767,32767,32767,23,32767,32767,357,32767,360,331,32767,32767,326,32767,382,32767,32767,32767,389,32767,32767,367,32767,32767,413,32767,32767,32767,680,32767,32767,661,688,32767,621,548,732,32767,32767,32767,32767,32767,32767,32767,1114,32767,5731,892,32767,12469]} 1. Nf3 {[%emt 1:30:30]} Nf6 {[%emt 1:30:30]} 2. c4 {[%emt 0:00:30]} c5 {[%emt 0:00:30]} 3. g3 {[%emt 0:00:30]} Nc6 {[%emt 0:00:30]} 4. Bg2 {[%emt 0:00:30]} g6 {[%emt 0:00:30]} 5. b3 {[%emt 0:00:30]} Bg7 {[%emt 0:00:30]} 6. Bb2 {[%emt 0:00:30]} O-O {[%emt 0:00:30]} 7. O-O {[%emt 0:00:30]} d6 {[%emt 0:00:30]} 8. Nc3 {[%emt 0:00:30]} Bf5 {[%emt 0:00:30]} 9. d4 {[%emt 0:00:30] A38: Symmetrical English vs ...g6: 4 Bg2 Bg7 5 Nf3 Nf6} cxd4 {[%emt 0:00:30]} (9... Ne4 10. e3 Qa5 11. Qc1 Nf6 12. Rd1 Nb4 13. Ne1 cxd4 14. Rxd4 Nc6 15. Rd2 Rfc8 16. Nd5 Nxd5 17. Rxd5 Bxb2 18. Qxb2 {0-1 (71) Meier,G (2647)-Kovalenko,I (2635) Tallinn 2018}) 10. Nxd4 {[%emt 0:00:30]} Bd7 {[%emt 0:00:30]} 11. e3 {[%emt 0:00:30]} Qc8 {[%emt 0:00:30]} 12. Rc1 $146 {[%emt 0:00:30]} ({Predecessor:} 12. Re1 Bh3 13. Bh1 Qd7 14. Nce2 e5 15. Nb5 Rfd8 16. e4 Ng4 {½-½ (52) Gamback,B (2142)-Bit Narva,D (1877) Stockholm 2014}) 12... Bh3 {[%emt 0:00:30]} 13. Nd5 {[%emt 0:00:30]} Bxg2 $1 {[%emt 0:00:30]} 14. Kxg2 {[%emt 0:00:30]} Qd7 {[%emt 0:00:30]} 15. Nxc6 {[%emt 0:00:30]} Nxd5 {[%emt 0:00:30]} 16. cxd5 {[%emt 0:00:30]} (16. Nd4 $5 {[%cal Rc4d5]} Nc7 17. Qd2 $11) 16... Bxb2 {[%emt 0:00:30]} 17. Rc2 {[%emt 0:00:30]} Bg7 {[%emt 0:00:30]} 18. Na5 {[%emt 0:00:30]} Rac8 {[%emt 0:00:30]} 19. Nc4 {[%emt 0:00:30]} Rc5 {[%emt 0:00:30]} 20. Qd3 {[%emt 0:00:30]} Rfc8 {[%emt 0:00:30]} 21. Rfc1 {[%emt 0:00:30]} Qc7 {[%emt 0:00:30]} 22. b4 {[%emt 0:00:30]} Bb2 {[%emt 0:00:30]} 23. bxc5 {[%emt 0:00:30]} Bxc1 {[%emt 0:00:30]} 24. Rxc1 {[%emt 0:00:30]} Qxc5 {[%emt 0:00:30]} 25. Rc2 {[%emt 0:00:30]} Qb5 {[%emt 0:00:30]} 26. Ne5 {[%emt 0:00:30]} Qe8 {[%emt 0:00:30]} 27. Rxc8 {[%emt 0:00:30]} Qxc8 {[%emt 0:00:30]} 28. Qc4 {[%emt 0:00:30]} Qf5 {[%emt 0:00:30]} 29. Nf3 {[%emt 0:00:30]} a6 {[%emt 0:00:30]} 30. a4 {[%emt 0:00:30]} g5 {[%emt 0:00:30]} 31. g4 {[%emt 0:00:30]} Qd7 {[%emt 0:00:30]} 32. Nxg5 {[%emt 0:00:30]} h6 {[%emt 0:00:30]} 33. Nf3 {[%emt 0:00:30]} b5 {[%emt 0:00:30]} 34. axb5 {[%emt 0:00:30]} axb5 {[%emt 0:00:30]} 35. Qf4 {[%emt 0:00:30]} Qb7 {[%emt 0:00:30]} 36. Qxh6 {[%emt 0:00:30]} Qxd5 {[%emt 0:00:30]} 37. Qg5+ {[%emt 0:00:30]} Qxg5 {[%emt 0:00:30]} 38. Nxg5 {[%emt 0:00:30]} b4 {[%emt 0:00:30]} 39. Ne4 {[%emt 0:00:30]} b3 {[%emt 0:00:30]} 40. Nd2 {[%emt 0:00:30]} b2 {[%emt 0:00:30]} 41. f4 {[%emt 0:00:30]} e6 {[%emt 0:00:30]} 42. Kf3 {[%emt 0:00:30]} Kg7 {[%emt 0:00:30]} 43. Ke2 {[%emt 0:00:30]} Kf6 $18 {[%emt 0:00:30]} 1-0

[Event "6th Uppsala Young Champions 2019"]
[Site "Uppsala"]
[Date "2019.10.26"]
[Round "3.2"]
[White "Abdrlauf, Elham"]
[Black "Papunidi, Matvey"]
[Result "1-0"]
[ECO "B35"]
[WhiteElo "2213"]
[BlackElo "2083"]
[Annotator "NA"]
[PlyCount "89"]
[EventDate "2019.10.25"]
[EventType "swiss"]
[EventCountry "SWE"]
[SourceTitle "playchess.com"]
[Source "ChessBase"]
[SourceQuality "1"]
[TimeControl "5400+30"]

1. e4 {[%emt 0:01:14]} c5 {[%emt 0:00:04]} 2. Nf3 {[%emt 0:00:11]} Nc6 {[%emt 0:00:06]} 3. d4 {[%emt 0:00:06]} cxd4 {[%emt 0:00:03]} 4. Nxd4 {[%emt 0:00:03]} g6 {[%emt 0:00:06]} 5. Nc3 {[%emt 0:00:09]} Bg7 {[%emt 0:00:14]} 6. Be3 {[%emt 0:00:02]} Nf6 {[%emt 0:00:05]} 7. Bc4 {[%emt 0:00:10]} O-O {[%emt 0:00:15]} 8. Bb3 {[%emt 0:00:01]} Re8 {[%emt 0:00:24]} 9. O-O {[%emt 0:00:34]} d6 {[%emt 0:00:20]} 10. Nxc6 {[%emt 0:21:37]} bxc6 {[%emt 0:00:08]} 11. f4 {[%emt 0:00:31]} Ng4 {[%emt 0:19:32]} 12. Bd4 {[%emt 0:00:08]} Bxd4+ {[%emt 0:00:03]} 13. Qxd4 {[%emt 0:00:04]} Qb6 {[%emt 0:00:01]} 14. Qxb6 {[%emt 0:00:20]} axb6 {[%emt 0:00:02]} 15. h3 {[%emt 0:00:02]} Nf6 {[%emt 0:00:45]} 16. e5 {[%emt 0:00:06]} Nd7 {[%emt 0:01:43]} 17. e6 {[%emt 0:02:18]} fxe6 {[%emt 0:00:06]} 18. Bxe6+ {[%emt 0:00:04]} Kg7 {[%emt 0:00:07]} 19. Rfe1 {[%emt 0:00:56]} Nc5 {[%emt 0:03:33]} 20. Bxc8 {[%emt 0:00:02]} Raxc8 {[%emt 0:00:04]} 21. b4 {[%emt 0:00:34]} Na6 {[%emt 0:03:10]} 22. a3 {[%emt 0:00:04]} b5 {[%emt 0:00:13]} 23. Re2 {[%emt 0:01:34]} Nc7 {[%emt 0:01:40]} 24. a4 {[%emt 0:00:31]} bxa4 {[%emt 0:04:14]} 25. Rxa4 {[%emt 0:01:12]} Ra8 {[%emt 0:14:50]} 26. Rxa8 {[%emt 0:00:50]} Nxa8 {[%emt 0:00:06]} 27. Ne4 {[%emt 0:00:15]} Nc7 {[%emt 0:00:08]} 28. c4 {[%emt 0:00:55]} d5 {[%emt 0:03:36]} 29. Nc5 {[%emt 0:02:41]} dxc4 {[%emt 0:11:11]} 30. Rc2 {[%emt 0:00:08]} e5 {[%emt 0:01:32]} 31. fxe5 {[%emt 0:00:32]} Rxe5 {[%emt 0:00:04]} 32. Rxc4 {[%emt 0:00:11]} Nd5 {[%emt 0:01:29]} 33. Na6 {[%emt 0:00:49]} Re6 {[%emt 0:04:05]} 34. Kf2 {[%emt 0:01:11]} Kf7 {[%emt 0:01:21]} 35. g3 {[%emt 0:00:28]} Kg7 {[%emt 0:04:10]} 36. h4 {[%emt 0:00:22]} h5 {[%emt 0:00:41]} 37. Nc5 {[%emt 0:04:05]} Re7 {[%emt 0:04:43]} 38. Nd3 {[%emt 0:01:28]} Re6 {[%emt 0:05:34]} 39. Rd4 {[%emt 0:02:31]} Nf6 {[%emt 0:03:27]} 40. Nf4 {[%emt 0:01:04]} Re5 {[%emt 0:02:50]} 41. Kf3 {[%emt 0:04:54]} Ng4 {[%emt 0:07:24]} 42. Rd7+ {[%emt 0:01:48]} Kh6 {[%emt 0:00:09]} 43. Rd6 {[%emt 0:00:22]} Re3+ {[%emt 0:00:04]} 44. Kg2 {[%emt 0:00:07]} Ne5 {[%emt 0:00:04]} 45. Re6 {[%emt 0:00:18]} 1-0

[Event "6th Uppsala Young Champions 2019"]
[Site "Uppsala"]
[Date "2019.10.26"]
[Round "3.3"]
[White "Falkevall, Axel"]
[Black "Nilsson, Joakim"]
[Result "0-1"]
[ECO "B22"]
[WhiteElo "2036"]
[BlackElo "2305"]
[Annotator "NA"]
[PlyCount "96"]
[EventDate "2019.10.25"]
[EventType "swiss"]
[EventCountry "SWE"]
[SourceTitle "playchess.com"]
[Source "ChessBase"]
[SourceQuality "1"]
[TimeControl "5400+30"]

1. e4 {[%emt 0:00:00]} c5 {[%emt 0:00:00]} 2. c3 {[%emt 0:00:00]} d5 {[%emt 0:00:00]} 3. exd5 {[%emt 0:00:00]} Qxd5 {[%emt 0:00:03]} 4. d4 {[%emt 0:00:02]} Nc6 {[%emt 0:00:09]} 5. Nf3 {[%emt 0:00:09]} Bg4 {[%emt 0:00:19]} 6. Be2 {[%emt 0:00:08]} cxd4 {[%emt 0:00:07]} 7. cxd4 {[%emt 0:00:04]} e6 {[%emt 0:00:13]} 8. Nc3 {[%emt 0:00:05]} Bb4 {[%emt 0:00:08]} 9. O-O {[%emt 0:00:08]} Qa5 {[%emt 0:00:20]} 10. Be3 {[%emt 0:05:13]} Bxc3 {[%emt 0:02:45]} 11. bxc3 {[%emt 0:00:06]} Nge7 {[%emt 0:00:34]} 12. Qb3 {[%emt 0:07:34]} Qc7 {[%emt 0:01:38]} 13. Rab1 {[%emt 0:04:02]} b6 {[%emt 0:08:33]} 14. Rfd1 {[%emt 0:05:45]} O-O {[%emt 0:05:10]} 15. h3 {[%emt 0:03:34]} Bxf3 {[%emt 0:01:36]} 16. Bxf3 {[%emt 0:00:16]} Rac8 {[%emt 0:00:06]} 17. Rbc1 {[%emt 0:06:09]} Na5 {[%emt 0:01:51]} 18. Qc2 {[%emt 0:03:17]} Nc4 {[%emt 0:00:43]} 19. Qe2 {[%emt 0:06:40]} Nd5 {[%emt 0:06:10]} 20. Bxd5 {[%emt 0:01:54]} exd5 {[%emt 0:00:09]} 21. Qf3 {[%emt 0:03:22]} Qd7 {[%emt 0:01:36]} 22. Re1 {[%emt 0:03:29]} Rfe8 {[%emt 0:01:11]} 23. Bf4 {[%emt 0:03:28]} Re6 {[%emt 0:02:17]} 24. Qd3 {[%emt 0:09:36]} Rce8 {[%emt 0:01:14]} 25. Bd2 {[%emt 0:01:24]} h6 {[%emt 0:10:55]} 26. Rxe6 {[%emt 0:02:42]} Rxe6 {[%emt 0:00:05]} 27. Re1 {[%emt 0:00:41]} Rxe1+ {[%emt 0:00:29]} 28. Bxe1 {[%emt 0:00:06]} Qe6 {[%emt 0:00:25]} 29. Kf1 {[%emt 0:01:37]} a5 {[%emt 0:07:54]} 30. Qe2 {[%emt 0:04:48]} Qd7 {[%emt 0:00:29]} 31. Kg1 {[%emt 0:02:16]} Qb5 {[%emt 0:01:18]} 32. Kh2 {[%emt 0:01:59]} Kf8 {[%emt 0:05:25]} 33. f3 {[%emt 0:04:45]} Qe8 {[%emt 0:00:55]} 34. Qf2 {[%emt 0:01:40]} Qe6 {[%emt 0:02:42]} 35. Kg1 {[%emt 0:02:15]} Kg8 {[%emt 0:03:32]} 36. Kh2 {[%emt 0:01:16]} f5 {[%emt 0:02:17]} 37. Bd2 {[%emt 0:02:14]} Qd6+ {[%emt 0:01:29]} 38. Kg1 {[%emt 0:02:03]} Qa3 {[%emt 0:03:15]} 39. Be1 {[%emt 0:00:54]} Qc1 {[%emt 0:00:36]} 40. Qe2 {[%emt 0:01:11]} Ne3 {[%emt 0:01:41]} 41. Kf2 {[%emt 0:02:53]} Nd1+ {[%emt 0:00:29]} 42. Kg1 {[%emt 0:00:42]} Ne3 {[%emt 0:10:25]} 43. Kf2 {[%emt 0:00:30]} f4 {[%emt 0:02:21]} 44. Bd2 {[%emt 0:02:00]} Qc2 {[%emt 0:01:50]} 45. g3 {[%emt 0:02:48]} Nd1+ {[%emt 0:03:49]} 46. Kf1 {[%emt 0:00:59]} fxg3 {[%emt 0:01:09]} 47. Qe5 {[%emt 0:01:31]} Qd3+ {[%emt 0:01:20]} 48. Kg1 {[%emt 0:00:17]} Qxf3 {[%emt 0:00:16]} 0-1